bitfinex-derivatives/quotes_SOLF0:USTF0_20250507
["timestamp","ask_amount","ask_price","bid_price","bid_amount"]
[1746647240509,33.4,146.08,145.97,2.0749]
[1746647241012,33.4,146.08,145.98,33.4]
[1746647241615,33.4,146.08,145.98,40.2498]
[1746647242112,23.82045735,146.07,145.95,33.4]
[1746647242315,25.95495735,146.07,145.92,33.4]
[1746647242516,27.14712604,146.07,145.92,33.4]
[1746647242712,27.14712604,146.07,145.93,6.8519]
[1746647242909,23.82045735,146.04,145.92,33.4]
[1746647243216,35.5526,146.03,145.92,33.4]
[1746647243417,33.42,146.05,145.93,2.1324]
[1746647243811,33.42,146.04,145.93,2.1324]
[1746647244106,6.8486,146.01,145.93,2.1324]
[1746647244308,33.42,146.04,145.95,6.8509]
[1746647244510,33.42,146.04,145.93,2.1324]
[1746647245417,33.42,146.04,145.94,6.8514]
[1746647245615,6.8498,145.99,145.94,6.8514]
[1746647245818,33.42,146.01,145.92,33.4]
[1746647246011,33.42,146.01,145.93,6.8519]
[1746647246210,6.8506,145.97,145.93,6.8519]
[1746647246516,33.42,146.01,145.92,33.4]
[1746647247122,6.8502,145.98,145.92,33.4]
[1746647247414,33.42,146.01,145.92,33.4]
[1746647247616,6.8507,145.97,145.93,6.852]
[1746647247917,4.3083,146.0,145.92,33.4]
[1746647248113,2.1327,145.99,145.91,2.156]
[1746647248319,2.1327,145.99,145.89,33.42]
[1746647249118,16.80410276,145.99,145.89,33.42]
[1746647249520,16.80410276,145.99,145.86,37.73]
[1746647249908,16.80410276,145.99,145.91,6.853]
[1746647251219,6.8516,145.95,145.91,6.853]
[1746647251817,33.66,145.96,145.9,6.8536]
[1746647252318,6.852,145.94,145.9,6.8536]
[1746647252517,33.66,145.96,145.89,6.854]
[1746647252712,33.66,145.96,145.86,37.73]
[1746647253219,35.8127,145.99,145.94,6.8517]
[1746647253516,33.68,146.04,145.95,33.68]
[1746647254218,33.68,146.04,145.99,6.8492]
[1746647254518,6.8486,146.01,145.95,33.68]
[1746647254720,6.8486,146.01,145.95,40.531]
[1746647255019,6.8486,146.01,145.95,33.68]
[1746647255220,33.68,146.04,145.98,6.8497]
[1746647255718,6.8478,146.03,145.98,6.8497]
[1746647256120,6.848,146.02,145.98,6.8497]
[1746647256323,6.848,146.02,145.97,6.8502]
[1746647256721,6.8494,145.99,145.95,33.68]
[1746647256921,33.68,146.04,145.95,33.68]
[1746647257414,6.8506,145.97,145.95,33.68]
[1746647257614,6.8506,145.97,145.93,9.0122]
[1746647257820,33.68,146.04,145.93,9.0122]
[1746647258023,33.68,146.04,145.93,2.1603]
[1746647258624,6.8477,146.03,145.97,6.8499]
[1746647258813,33.68,146.04,145.97,6.8499]
[1746647259018,33.68,146.04,145.96,33.68]
[1746647259321,33.68,146.04,145.93,35.8403]
[1746647259621,6.8492,146.0,145.95,6.8511]
[1746647260422,6.8492,146.0,145.96,6.8507]
[1746647260720,6.8492,146.0,145.93,35.8403]
[1746647261018,6.8492,146.0,145.96,6.8504]
[1746647261723,6.8492,146.0,145.97,6.8502]
[1746647262220,33.68,146.04,145.93,35.8403]
[1746647262719,6.8489,146.0,145.93,35.8403]
[1746647262922,6.8489,146.0,145.97,6.8501]
[1746647263223,6.8487,146.01,145.93,35.8403]
[1746647263620,33.68,146.04,145.93,35.8403]
[1746647264021,6.8486,146.01,145.93,35.8403]
[1746647264321,33.68,146.04,145.93,35.8403]
[1746647264514,6.8482,146.02,145.93,35.8403]
[1746647264715,6.8482,146.02,145.99,6.8489]
[1746647265111,33.68,146.04,145.93,35.8403]
[1746647265921,23.81801511,146.03,145.95,6.851]
[1746647266121,23.81801511,146.03,145.93,35.8403]
[1746647266423,2.0,146.02,145.93,35.8403]
[1746647267024,2.0741,146.01,145.93,35.8403]
[1746647267221,33.68,146.0,145.93,33.68]
[1746647267423,33.68,146.0,145.9,33.68]
[1746647267424,59.61451511,146.0,145.9,33.68]
[1746647267724,23.81801511,145.97,145.86,33.68]
[1746647268022,6.8534,145.91,145.88,6.8542]
[1746647268225,33.68,145.92,145.83,627.5045]
[1746647268424,6.8544,145.89,145.83,625.34]
[1746647268622,2.0156,145.91,145.83,33.68]
[1746647268820,2.0156,145.91,145.81,2.1645]
[1746647269116,6.8543,145.89,145.86,6.8551]
[1746647269422,2.0156,145.91,145.86,6.8551]
[1746647269820,6.8543,145.89,145.86,6.8551]
[1746647270015,2.0156,145.91,145.81,2.1645]
[1746647270220,6.8538,145.9,145.81,2.1645]
[1746647270520,2.0156,145.91,145.81,2.1645]
[1746647270716,33.68,145.92,145.81,2.1645]
[1746647271425,6.8533,145.91,145.81,2.1645]
[1746647271725,6.8533,145.91,145.88,6.8542]
[1746647272027,6.8537,145.9,145.84,33.68]
[1746647272330,33.68,145.92,145.85,6.8558]
[1746647272519,6.8542,145.89,145.85,6.8558]
[1746647272922,33.68,145.92,145.86,6.8554]
[1746647273119,6.8539,145.9,145.81,35.8445]
[1746647273328,33.68,145.92,145.81,35.8445]
[1746647273716,33.68,145.92,145.86,6.8554]
[1746647273826,33.68,145.92,145.81,35.8445]
[1746647274325,6.8535,145.91,145.81,35.8445]
[1746647274826,6.8535,145.91,145.87,6.8546]
[1746647275026,6.8537,145.9,145.87,6.8546]
[1746647275724,6.8537,145.9,145.88,6.8546]
[1746647275926,6.8537,145.9,145.81,35.8445]
[1746647276121,6.8533,145.91,145.81,35.8445]
[1746647276321,33.68,145.92,145.89,6.8537]
[1746647276726,33.68,145.92,145.82,23.81801511]
[1746647276925,40.5329,145.92,145.82,23.81801511]
[1746647277320,6.8537,145.9,145.87,6.8546]
[1746647277528,33.68,145.92,145.82,23.81801511]
[1746647277725,33.68,145.92,145.82,14.67993838]
[1746647278125,35.7156,145.95,145.85,14.67993838]
[1746647278332,2.0156,145.95,145.86,38.0312]
[1746647278825,33.7,146.0,145.88,14.67993838]
[1746647279025,33.7,146.0,145.89,2.1239]
[1746647279221,33.7,146.0,145.91,14.67993838]
[1746647280432,6.8495,145.99,145.91,14.67993838]
[1746647280826,6.8495,145.99,145.94,6.8515]
[1746647281025,40.5491,146.0,145.94,33.18]
[1746647281227,33.7,146.0,145.94,33.18]
[1746647281421,2.0748,146.01,145.97,6.8499]
[1746647281621,2.1512,146.02,145.94,33.18]
[1746647281827,33.43296,146.03,145.97,6.85]
[1746647282026,33.43296,146.03,145.94,33.18]
[1746647282228,6.8482,146.02,145.94,33.18]
[1746647282427,0.25296,146.03,145.99,6.8493]
[1746647282617,0.25296,146.03,145.95,2.1657]
[1746647282822,0.25296,146.03,145.96,33.16]
[1746647283024,33.16,146.05,145.96,35.3372]
[1746647283221,6.8472,146.04,145.96,35.3372]
[1746647283422,4.25,146.07,145.96,35.3372]
[1746647283828,6.8488,146.01,145.96,35.3372]
[1746647284030,6.8488,146.01,145.97,6.85]
[1746647284228,4.25,146.07,145.97,6.85]
[1746647284531,4.25,146.07,145.96,35.3372]
[1746647284925,6.8463,146.06,145.96,35.3372]
[1746647285123,2.1231,146.07,146.01,6.848]
[1746647285331,2.1231,146.07,146.0,33.16]
[1746647285630,2.1231,146.07,146.02,6.8478]
[1746647285828,625.36,146.1,146.0,33.16]
[1746647286022,6.8455,146.08,146.0,33.16]
[1746647286218,625.36,146.1,146.0,33.16]
[1746647286829,625.36,146.1,146.01,6.8483]
[1746647287034,6.8469,146.05,146.01,6.8483]
[1746647287330,625.36,146.1,146.0,40.0085]
[1746647287519,625.36,146.1,146.0,33.16]
[1746647287726,6.8472,146.04,146.0,33.16]
[1746647287923,625.36,146.1,146.0,33.16]
[1746647288526,625.36,146.1,146.04,6.8467]
[1746647288824,625.36,146.1,146.0,33.16]
[1746647289930,6.8454,146.08,146.04,6.8467]
[1746647290426,625.36,146.1,146.0,33.16]
[1746647290630,625.36,146.1,146.05,6.8463]
[1746647291132,6.8454,146.08,146.05,6.8463]
[1746647291530,625.36,146.1,146.0,33.16]
[1746647291728,6.8467,146.05,146.0,33.16]
[1746647291929,625.36,146.1,146.0,33.16]
[1746647292131,625.36,146.1,146.0,6.8487]
[1746647292431,14.67993838,146.08,146.0,6.8487]
[1746647292630,2.1223,146.07,146.01,6.8484]
[1746647292929,2.1223,146.07,145.97,33.14]
[1746647292930,33.14,146.06,145.97,33.14]
[1746647293132,35.3104,146.06,145.98,6.8497]
[1746647293327,14.67993838,146.05,145.94,625.24]
[1746647293533,14.67993838,146.05,145.94,33.14]
[1746647293828,2.0146,146.04,145.94,33.14]
[1746647294133,6.8489,146.01,145.97,6.8501]
[1746647294333,33.14,146.01,145.94,33.14]
[1746647294628,33.14,146.01,145.9,39.3254]
[1746647294832,6.8496,145.99,145.9,39.3254]
[1746647295334,6.85,145.98,145.9,39.3254]
[1746647295730,2.1223,146.0,145.9,39.3254]
[1746647295929,6.8495,145.99,145.96,6.8504]
[1746647296335,2.1223,146.0,145.95,6.851]
[1746647296533,2.1223,146.0,145.9,39.3254]
[1746647296733,2.1545,145.99,145.9,39.3254]
[1746647297037,6.8501,145.98,145.9,39.3254]
[1746647297333,2.1545,145.99,145.9,39.3254]
[1746647297537,2.1545,145.99,145.94,6.8514]
[1746647298037,6.8503,145.98,145.94,6.8514]
[1746647298237,6.8503,145.98,145.95,6.8512]
[1746647298741,6.8503,145.98,145.94,6.8515]
[1746647299035,6.8503,145.98,145.9,39.3254]
[1746647299236,6.8503,145.98,145.94,6.8514]
[1746647299840,6.8503,145.97,145.94,6.8514]
[1746647300031,2.1545,145.99,145.9,33.16]
[1746647300232,2.1777,145.96,145.87,625.0]
[1746647300433,2.1777,145.96,145.88,6.8542]
[1746647300636,2.1777,145.96,145.85,2.0455]
[1746647300938,6.8529,145.92,145.89,6.8541]
[1746647301444,33.16,145.93,145.89,6.8541]
[1746647302241,33.16,145.93,145.84,131.8546706]
[1746647302435,35.3377,145.96,145.84,131.8546706]
[1746647303133,35.3377,145.96,145.93,6.8518]
[1746647303342,33.16,145.96,145.88,33.16]
[1746647303540,35.3145,145.99,145.95,6.8508]
[1746647303741,2.1545,145.99,145.89,33.16]
[1746647304045,2.1545,145.99,145.9,2.1936]
[1746647304245,37.3278,146.0,145.9,2.1936]
[1746647304444,37.3278,146.0,145.91,18.72863838]
[1746647304948,37.3278,146.0,145.98,6.8495]
[1746647305151,33.16,146.0,145.93,33.16]
[1746647305347,33.16,146.03,145.93,33.16]
[1746647305548,6.8482,146.02,145.98,6.8496]
[1746647305951,2.1731,146.04,145.93,33.16]
[1746647306146,33.16,146.03,146.01,6.8481]
[1746647306444,596.3426,146.08,145.97,33.16]
[1746647306445,33.16,146.06,145.97,33.16]
[1746647306653,33.16,146.07,145.97,47.83993838]
[1746647306949,33.16,146.07,145.98,6.034]
[1746647307139,11.1481,146.08,146.04,6.8468]
[1746647307750,11.1481,146.08,146.03,6.8473]
[1746647308049,11.1481,146.08,146.01,33.16]
[1746647308250,11.1481,146.08,146.04,6.8468]
[1746647308450,33.16,146.1,146.01,33.16]
[1746647308858,6.8454,146.08,146.04,6.8467]
[1746647309256,33.16,146.1,146.01,33.16]
[1746647310251,33.16,146.1,146.05,6.8463]
[1746647310459,33.16,146.1,146.01,33.16]
[1746647311751,33.16,146.1,146.02,6.848]
[1746647311953,33.16,146.1,146.01,33.16]
[1746647314060,6.8458,146.07,146.03,6.8474]
[1746647314357,33.16,146.1,146.01,33.16]
[1746647314555,6.8454,146.08,146.04,6.8466]
[1746647314859,33.16,146.1,146.04,6.8466]
[1746647315159,6.8455,146.08,146.04,6.8466]
[1746647315561,33.16,146.1,146.05,6.8464]
[1746647315761,33.16,146.1,146.01,56.96628341]
[1746647316459,40.0046,146.1,146.01,56.96628341]
[1746647316665,33.16,146.1,146.01,56.96628341]
[1746647316858,33.16,146.1,146.01,33.16]
[1746647317051,6.846,146.07,146.03,6.8473]
[1746647317558,6.846,146.07,146.01,33.16]
[1746647317862,6.8454,146.08,146.01,33.16]
[1746647318160,6.8454,146.08,146.05,6.8464]
[1746647318362,33.16,146.1,146.05,6.8464]
[1746647318558,6.8454,146.08,146.05,6.8464]
[1746647318962,33.16,146.1,146.05,6.8464]
[1746647319164,6.8448,146.09,146.05,6.8464]
[1746647319462,33.16,146.1,146.05,6.8464]
[1746647319662,6.8453,146.08,146.05,6.8464]
[1746647320461,33.16,146.1,146.01,33.16]
[1746647320961,6.8433,146.12,146.09,6.8444]
[1746647321165,37.1032,146.13,146.05,32.98]
[1746647321765,43.9461,146.13,146.1,6.844]
[1746647321965,43.9461,146.13,146.05,32.98]
[1746647322162,43.9461,146.13,146.09,6.8445]
[1746647322665,2.0263,146.13,146.05,32.98]
[1746647322861,32.98,146.15,146.06,2.1658]
[1746647323260,32.98,146.15,146.12,6.8429]
[1746647324066,6.8418,146.16,146.12,6.8429]
[1746647324463,39.1926,146.18,146.09,32.98]
[1746647324653,4.2147,146.18,146.09,32.98]
[1746647324859,6.8405,146.18,146.09,56.78628341]
[1746647325062,32.98,146.2,146.09,56.78628341]
[1746647325264,32.98,146.2,146.09,32.98]
[1746647325458,6.8414,146.16,146.09,32.98]
[1746647325660,4.081,146.19,146.11,6.8433]
[1746647325860,4.081,146.19,146.09,32.98]
[1746647326056,4.081,146.19,146.11,6.8434]
[1746647326366,6.8429,146.13,146.09,32.98]
[1746647326865,32.98,146.16,146.07,591.58]
[1746647327053,32.98,146.16,146.06,32.98]
[1746647327260,56.78628341,146.16,146.06,32.98]
[1746647327661,6.8445,146.1,146.06,32.98]
[1746647327867,6.8445,146.1,146.07,6.8456]
[1746647328164,6.8447,146.09,146.06,32.98]
[1746647328361,56.78628341,146.16,146.06,32.98]
[1746647328667,6.8445,146.1,146.06,32.98]
[1746647328868,32.98,146.12,146.06,32.98]
[1746647329067,32.98,146.14,146.06,32.98]
[1746647329660,2.0427,146.13,146.06,32.98]
[1746647329862,2.0427,146.13,146.07,6.8453]
[1746647330263,6.8447,146.09,146.07,6.8453]
[1746647330467,2.0427,146.13,146.07,6.8453]
[1746647330967,6.8445,146.1,146.07,6.8453]
[1746647332171,6.844,146.11,146.06,32.98]
[1746647332372,2.0427,146.13,146.06,32.98]
[1746647332864,2.0427,146.13,146.06,39.8257]
[1746647333269,2.0427,146.13,146.03,32.98]
[1746647333470,4.1038,146.12,146.03,32.98]
[1746647333870,6.8458,146.07,146.04,6.8468]
[1746647334767,4.1038,146.12,146.03,32.98]
[1746647335274,4.1038,146.12,146.06,6.8459]
[1746647335473,4.1038,146.12,146.03,32.98]
[1746647337275,6.8438,146.11,146.03,32.98]
[1746647337471,4.1038,146.12,146.03,32.98]
[1746647338174,6.8459,146.07,146.04,6.8467]
[1746647338373,32.98,146.09,146.0,32.98]
[1746647339374,32.98,146.09,145.97,35.1321]
[1746647339570,6.8473,146.04,146.01,6.8481]
[1746647339769,32.98,146.09,146.01,6.8481]
[1746647340076,6.8478,146.03,146.01,6.8481]
[1746647340270,6.8478,146.03,145.97,35.1321]
[1746647340470,32.98,146.09,145.97,35.1321]
[1746647341179,6.8473,146.04,145.97,35.1321]
[1746647341376,32.48,146.05,145.97,35.1321]
[1746647341876,32.48,146.05,145.97,32.98]
[1746647342277,2.0545,146.04,145.97,32.98]
[1746647342477,2.0545,146.04,145.94,32.48]
[1746647342674,2.1685,146.03,145.94,32.48]
[1746647342880,6.8488,146.01,145.98,6.8498]
[1746647343477,9.0163,146.03,146.0,6.8487]
[1746647343784,2.1685,146.03,145.94,32.48]
[1746647343981,6.8491,146.0,145.97,6.8499]
[1746647344483,2.1685,146.03,145.95,6.8509]
[1746647344681,2.1685,146.03,145.94,32.48]
[1746647345084,2.1685,146.03,145.95,6.8511]
[1746647345285,2.1685,146.03,145.93,1.991]
[1746647345582,2.1685,146.03,145.94,6.8515]
[1746647345583,6.8506,145.97,145.94,6.8515]
[1746647346082,32.48,145.99,145.93,6.852]
[1746647346383,32.48,145.99,145.91,32.48]
[1746647346580,32.48,145.99,145.88,34.6481]
[1746647347284,6.8509,145.96,145.88,34.6481]
[1746647347482,32.48,145.99,145.88,34.6481]
[1746647347785,6.8507,145.97,145.93,6.8519]
[1746647348079,6.8507,145.97,145.88,34.6481]
[1746647348286,32.48,145.99,145.88,34.6481]
[1746647349186,6.8505,145.97,145.93,6.8519]
[1746647349388,32.48,145.99,145.93,6.8519]
[1746647349586,32.48,145.99,145.88,34.6481]
[1746647349792,32.48,145.99,145.92,6.8526]
[1746647349988,32.48,145.99,145.88,34.6481]
[1746647350187,6.8501,145.98,145.94,6.8513]
[1746647350486,6.8501,145.98,145.88,34.6481]
[1746647350687,32.48,145.99,145.88,34.6481]
[1746647351290,32.48,145.99,145.91,6.8529]
[1746647351884,32.48,145.99,145.9,6.8535]
[1746647352191,32.48,145.99,145.88,34.6481]
[1746647352394,32.48,145.99,145.89,6.854]
[1746647352587,14.64654726,145.98,145.89,6.854]
[1746647352794,14.64654726,145.98,145.85,34.627]
[1746647353090,6.8529,145.92,145.89,6.8539]
[1746647353590,39.3524,145.93,145.9,6.8533]
[1746647353788,32.5,145.93,145.85,34.627]
[1746647354889,6.8513,145.95,145.86,2.0556]
[1746647355199,39.3509,145.96,145.86,2.0556]
[1746647355991,6.8513,145.95,145.86,2.0556]
[1746647356194,32.5,145.96,145.86,2.0556]
[1746647356893,32.5,145.96,145.85,34.627]
[1746647357096,32.5,145.96,145.85,32.5]
[1746647357284,6.8534,145.91,145.85,32.5]
[1746647358491,6.8536,145.9,145.85,32.5]
[1746647358893,32.5,145.96,145.85,32.5]
[1746647359395,6.8534,145.91,145.85,32.5]
[1746647359594,6.8534,145.91,145.88,6.8544]
[1746647360199,6.8536,145.9,145.87,6.8548]
[1746647360493,32.5,145.96,145.85,32.5]
[1746647361296,6.8539,145.9,145.87,6.8548]
[1746647361696,6.8541,145.89,145.87,6.8548]
[1746647362099,32.52,145.91,145.86,6.8554]
[1746647362301,32.52,145.91,145.83,2.1903]
[1746647362489,2.1003,145.9,145.82,32.52]
[1746647362693,6.47,145.9,145.84,6.8562]
[1746647362893,6.8554,145.87,145.84,6.8562]
[1746647363296,6.8567,145.84,145.79,591.9]
[1746647363496,6.8567,145.84,145.78,32.52]
[1746647363701,32.52,145.87,145.78,32.52]
[1746647364000,32.52,145.87,145.81,6.8576]
[1746647364393,32.52,145.87,145.78,32.52]
[1746647364994,6.8561,145.85,145.82,6.8574]
[1746647365195,32.52,145.87,145.78,32.52]
[1746647365500,32.52,145.87,145.84,6.856]
[1746647365700,32.52,145.87,145.78,32.52]
[1746647366306,32.52,145.87,145.85,6.8557]
[1746647366597,32.52,145.87,145.78,32.52]
[1746647366800,6.8545,145.89,145.85,6.8557]
[1746647367599,6.8545,145.89,145.86,6.8553]
[1746647368403,6.8545,145.89,145.85,6.8558]
[1746647368603,6.8545,145.89,145.82,32.52]
[1746647369397,6.47,145.9,145.82,32.52]
[1746647370001,11.147,145.9,145.82,32.52]
[1746647370196,4.2931,145.9,145.82,32.52]
[1746647370397,6.8543,145.89,145.86,6.8553]
[1746647370905,6.8546,145.88,145.85,6.8557]
[1746647371398,4.2931,145.9,145.84,6.8562]
[1746647371597,6.855,145.88,145.84,6.8562]
[1746647372204,6.8552,145.87,145.84,6.8562]
[1746647372404,4.2931,145.9,145.83,6.8567]
[1746647372702,4.2931,145.9,145.82,32.52]
[1746647372903,6.8553,145.87,145.84,6.8562]
[1746647373810,6.8547,145.88,145.85,6.8557]
[1746647374300,6.8543,145.89,145.86,6.8554]
[1746647374602,4.2931,145.9,145.82,32.52]
[1746647374905,6.8548,145.88,145.85,6.8557]
[1746647375207,4.2931,145.9,145.82,32.52]
[1746647375510,11.147,145.9,145.82,32.52]
[1746647375904,8.9542,145.9,145.82,32.52]
[1746647376106,8.9542,145.9,145.83,2.0433]
[1746647376301,6.8542,145.89,145.86,6.8553]
[1746647376905,2.1003,145.9,145.85,6.8559]
[1746647377206,2.1003,145.9,145.82,32.52]
[1746647377505,6.8544,145.89,145.82,32.52]
[1746647377906,2.1003,145.9,145.82,32.52]
[1746647378208,6.8548,145.88,145.85,6.8557]
[1746647378506,2.1003,145.9,145.82,32.52]
[1746647378708,6.855,145.87,145.82,32.52]
[1746647379006,2.1003,145.9,145.82,32.52]
[1746647379306,2.1003,145.9,145.83,6.8567]
[1746647379903,6.8554,145.87,145.83,6.8567]
[1746647380305,6.8554,145.87,145.84,6.8563]
[1746647380703,2.1003,145.9,145.82,39.3771]
[1746647380906,2.1003,145.9,145.82,32.52]
[1746647381202,6.8558,145.86,145.82,32.52]
[1746647381909,6.8558,145.86,145.83,6.8566]
[1746647382308,6.856,145.85,145.83,6.8566]
[1746647382706,2.1003,145.9,145.83,6.8566]
[1746647382908,2.1003,145.9,145.82,32.52]
[1746647383609,6.8558,145.86,145.82,32.52]
[1746647383912,6.8558,145.86,145.83,6.8566]
[1746647384210,6.8558,145.86,145.82,32.52]
[1746647384511,6.8553,145.87,145.82,32.52]
[1746647385106,6.8553,145.87,145.84,6.8562]
[1746647386111,6.8556,145.86,145.84,6.8562]
[1746647387016,6.8556,145.86,145.83,6.8567]
[1746647387314,6.8554,145.87,145.82,32.52]
[1746647387513,6.8554,145.87,145.84,6.8563]
[1746647388210,6.8555,145.86,145.84,6.8563]
[1746647388604,2.1003,145.9,145.82,32.52]
[1746647388815,6.8548,145.88,145.82,32.52]
[1746647389007,6.8548,145.88,145.85,6.8557]
[1746647389409,6.8553,145.87,145.82,32.52]
[1746647389614,6.8553,145.87,145.84,6.8562]
[1746647389807,6.8555,145.86,145.84,6.8562]
[1746647390012,6.8555,145.86,145.82,32.52]
[1746647390411,6.8552,145.87,145.84,6.8561]
[1746647390715,32.52,145.91,145.82,32.52]
[1746647391915,6.8552,145.87,145.84,6.8561]
[1746647392814,6.8555,145.86,145.84,6.8561]
[1746647393014,32.52,145.91,145.82,32.52]
[1746647393917,6.8548,145.88,145.85,6.8557]
[1746647394818,6.8548,145.88,145.86,6.8555]
[1746647395018,6.8548,145.88,145.82,32.52]
[1746647395218,32.52,145.91,145.8,2.0433]
[1746647396521,6.8551,145.87,145.85,6.8556]
[1746647396723,32.52,145.91,145.85,6.8556]
[1746647397017,32.52,145.91,145.8,2.0433]
[1746647397520,32.52,145.91,145.85,6.8556]
[1746647397719,32.52,145.91,145.8,2.0433]
[1746647398119,6.8548,145.88,145.85,6.8557]
[1746647398621,6.8538,145.9,145.8,16.68984726]
[1746647398810,32.52,145.91,145.8,16.68984726]
[1746647400422,14.70518184,145.86,145.7,131.24789965]
[1746647400625,14.71242392,145.83,145.7,133.23429965]
[1746647400810,598.661,145.85,145.75,6.8606]
[1746647401015,598.661,145.85,145.7,147.93926705]
[1746647401211,32.46,145.84,145.7,133.23429965]
[1746647401410,32.46,145.84,145.71,14.7072929]
[1746647401615,32.46,145.84,145.73,32.47855921]
[1746647401814,6.8581,145.81,145.77,6.8594]
[1746647402125,32.46,145.84,145.74,32.46]
[1746647402628,32.46,145.84,145.76,6.86]
[1746647402922,32.46,145.84,145.74,32.46]
[1746647403221,32.46,145.84,145.75,2.1427]
[1746647403521,32.46,145.84,145.74,32.46]
[1746647403918,32.46,145.84,145.75,6.8606]
[1746647404223,32.46,145.84,145.73,32.47855921]
[1746647404423,6.861,145.75,145.73,32.47855921]
[1746647404626,32.46,145.77,145.73,32.47855921]
[1746647404812,32.46,145.77,145.7,1.9864]
[1746647405423,32.46,145.77,145.75,6.8604]
[1746647405720,32.46,145.77,145.7,1.9864]
[1746647405919,613.3682929,145.85,145.7,1.9864]
[1746647406218,32.46,145.84,145.7,1.9864]
[1746647406426,14.7072929,145.82,145.73,6.8615]
[1746647406718,14.7072929,145.82,145.7,1.9864]
[1746647407623,14.7072929,145.82,145.72,6.8618]
[1746647408422,14.7072929,145.82,145.73,6.8614]
[1746647408722,14.7072929,145.82,145.71,6.8623]
[1746647408922,14.7072929,145.79,145.68,32.46]
[1746647409125,38.6396,145.78,145.68,32.46]
[1746647409321,38.6396,145.78,145.66,2.1427]
[1746647409826,38.6396,145.78,145.65,2.1081]
[1746647410022,14.7072929,145.76,145.65,2.1081]
[1746647410223,6.8633,145.7,145.65,2.1081]
[1746647410526,32.48,145.71,145.62,8.1196398]
[1746647410915,6.8638,145.69,145.62,8.1196398]
[1746647411115,32.48,145.71,145.62,8.1196398]
[1746647411425,32.48,145.71,145.67,6.8641]
[1746647412127,32.48,145.71,145.68,6.8639]
[1746647412424,32.48,145.71,145.61,36.4467]
[1746647413124,6.8638,145.69,145.61,36.4467]
[1746647413424,32.48,145.71,145.61,36.4467]
[1746647413624,6.8637,145.69,145.65,6.8651]
[1746647414224,6.8641,145.68,145.64,6.8657]
[1746647414626,32.48,145.71,145.6,2.1081]
[1746647414924,32.48,145.71,145.56,32.47855921]
[1746647414925,38.6358,145.7,145.61,6.8669]
[1746647415125,38.6358,145.7,145.58,32.48]
[1746647415324,6.8652,145.66,145.63,6.8663]
[1746647415522,32.48,145.66,145.63,6.8663]
[1746647415724,32.48,145.66,145.64,6.8658]
[1746647416227,6.8639,145.69,145.65,6.8654]
[1746647416522,32.48,145.69,145.58,47.1872929]
[1746647417325,32.48,145.69,145.61,6.8668]
[1746647417830,6.8656,145.65,145.61,6.8668]
[1746647418024,39.3456,145.65,145.61,6.8668]
[1746647418328,32.48,145.65,145.62,6.8664]
[1746647418528,32.48,145.65,145.58,32.48]